[Event "Titled Tuesday Blitz September 27 Late 2022"]
[White "Meduri, Aakaash"]
[Black "Stoyanov, Tsvetan"]
[WhiteFideId "2032252"]
[BlackFideId "2917173"]
[WhiteElo "2113"]
[BlackElo "2283"]
[Result "1-0"]
[Round "05"]
[TimeControl "180+1"]
[Date "2022.09.28"]
[WhiteClock "0:00:09"]
[BlackClock "0:00:07"]

1. d4 {[%clk 0:03:00]}  Nf6 {[%clk 0:02:56]} 2. Nc3 {[%clk 0:03:00]}  d5 {[%clk 0:02:55]} 3. Bf4 {[%clk 0:03:00]}  e6 {[%clk 0:02:55]} 4. Nb5 {[%clk 0:03:00]}  Na6 {[%clk 0:02:55]} 5. e3 {[%clk 0:03:00]}  c6 {[%clk 0:02:54]} 6. Nc3 {[%clk 0:03:01]}  Bb4 {[%clk 0:02:54]} 7. Bd3 {[%clk 0:03:00]}  Nc7 {[%clk 0:02:50]} 8. a3 {[%clk 0:02:53]}  Bd6 {[%clk 0:02:47]} 9. Bg3 {[%clk 0:02:50]}  h5 {[%clk 0:02:42]} 10. Nf3 {[%clk 0:02:49]}  Ng4 {[%clk 0:02:35]} 11. e4 {[%clk 0:02:39]}  Bxg3 {[%clk 0:02:28]} 12. hxg3 {[%clk 0:02:38]}  dxe4 {[%clk 0:02:16]} 13. Nxe4 {[%clk 0:02:34]}  Nd5 {[%clk 0:02:15]} 14. c4 {[%clk 0:02:23]}  Ne7 {[%clk 0:02:09]} 15. Qc2 {[%clk 0:02:17]}  Qc7 {[%clk 0:01:45]} 16. O-O-O {[%clk 0:02:05]}  Bd7 {[%clk 0:01:46]} 17. Kb1 {[%clk 0:01:47]}  O-O-O {[%clk 0:01:43]} 18. Nfg5 {[%clk 0:01:22]}  Be8 {[%clk 0:01:40]} 19. Qc3 {[%clk 0:01:11]}  Rh6 {[%clk 0:01:17]} 20. f3 {[%clk 0:01:03]}  Ne3 {[%clk 0:01:14]} 21. Rd2 {[%clk 0:01:03]}  N3f5 {[%clk 0:00:57]} 22. Bc2 {[%clk 0:00:54]}  h4 {[%clk 0:00:33]} 23. g4 {[%clk 0:00:37]}  Ng3 {[%clk 0:00:31]} 24. Nxg3 {[%clk 0:00:35]}  Qxg3 {[%clk 0:00:22]} 25. Ne4 {[%clk 0:00:33]}  Qf4 {[%clk 0:00:22]} 26. c5 {[%clk 0:00:28]}  Nd5 {[%clk 0:00:20]} 27. Qa5 {[%clk 0:00:28]}  a6 {[%clk 0:00:16]} 28. Nd6+ {[%clk 0:00:24]}  Rxd6 {[%clk 0:00:16]} 29. cxd6 {[%clk 0:00:25]}  Qxd6 {[%clk 0:00:16]} 30. Be4 {[%clk 0:00:21]}  Qf4 {[%clk 0:00:09]} 31. Re1 {[%clk 0:00:16]}  Bd7 {[%clk 0:00:06]} 32. Bxd5 {[%clk 0:00:16]}  exd5 {[%clk 0:00:07]} 33. Rde2 {[%clk 0:00:14]}  Re6 {[%clk 0:00:05]} 34. Qc3 {[%clk 0:00:11]}  Qg3 {[%clk 0:00:04]} 35. Qc2 {[%clk 0:00:10]}  Qf4 {[%clk 0:00:03]} 36. Qd3 {[%clk 0:00:08]}  Qg3 {[%clk 0:00:01]} 37. Rxe6 {[%clk 0:00:09]}  Bxe6 {[%clk 0:00:01]} 38. Re2 {[%clk 0:00:09]}  h3 {[%clk 0:00:02]} 39. gxh3 {[%clk 0:00:09]}  Qxh3 {[%clk 0:00:03]} 40. Ka2 {[%clk 0:00:08]}  Qf1 {[%clk 0:00:03]} 41. Qe3 {[%clk 0:00:08]}  Qd1 {[%clk 0:00:02]} 42. Rd2 {[%clk 0:00:08]}  Qa4 {[%clk 0:00:03]} 43. Rh2 {[%clk 0:00:06]}  Qc4+ {[%clk 0:00:03]} 44. b3 {[%clk 0:00:07]}  Qb5 {[%clk 0:00:03]} 45. f4 {[%clk 0:00:05]}  g6 {[%clk 0:00:03]} 46. f5 {[%clk 0:00:05]}  gxf5 {[%clk 0:00:03]} 47. Rh8+ {[%clk 0:00:05]}  Kd7 {[%clk 0:00:03]} 48. gxf5 {[%clk 0:00:05]}  Bxf5 {[%clk 0:00:03]} 49. Qe8+ {[%clk 0:00:05]}  Kd6 {[%clk 0:00:04]} 50. Qe5+ {[%clk 0:00:04]}  Kd7 {[%clk 0:00:03]} 51. Qxf5+ {[%clk 0:00:05]}  Kc7 {[%clk 0:00:04]} 52. Qe5+ {[%clk 0:00:05]}  Kb6 {[%clk 0:00:05]} 53. Qe3 {[%clk 0:00:03]}  Qf1 {[%clk 0:00:05]} 54. Rh2 {[%clk 0:00:03]}  Qf5 {[%clk 0:00:05]} 55. Rf2 {[%clk 0:00:03]}  Qg6 {[%clk 0:00:05]} 56. Qf4 {[%clk 0:00:03]}  Qd3 {[%clk 0:00:05]} 57. Qf3 {[%clk 0:00:02]}  Qxd4 {[%clk 0:00:05]} 58. Qxf7 {[%clk 0:00:03]}  Qc3 {[%clk 0:00:05]} 59. Qf3 {[%clk 0:00:03]}  Qd4 {[%clk 0:00:05]} 60. Re2 {[%clk 0:00:03]}  Kc7 {[%clk 0:00:06]} 61. Qe3 {[%clk 0:00:04]}  Qg4 {[%clk 0:00:05]} 62. Qe7+ {[%clk 0:00:05]}  Kb6 {[%clk 0:00:06]} 63. Qe3+ {[%clk 0:00:05]}  Kc7 {[%clk 0:00:07]} 64. Qe7+ {[%clk 0:00:05]}  Kb6 {[%clk 0:00:07]} 65. Qb4+ {[%clk 0:00:05]}  Qxb4 {[%clk 0:00:07]} 66. axb4 {[%clk 0:00:06]}  Kb5 {[%clk 0:00:07]} 67. Ka3 {[%clk 0:00:07]}  b6 {[%clk 0:00:08]} 68. Rd2 {[%clk 0:00:07]}  a5 {[%clk 0:00:07]} 69. bxa5 {[%clk 0:00:07]}  bxa5 {[%clk 0:00:08]} 70. Rd4 {[%clk 0:00:07]}  Kc5 {[%clk 0:00:08]} 71. Rh4 {[%clk 0:00:07]}  Kb5 {[%clk 0:00:07]} 72. Rh5 {[%clk 0:00:07]}  Kc5 {[%clk 0:00:07]} 73. Ka4 {[%clk 0:00:07]}  Kd4 {[%clk 0:00:07]} 74. Kxa5 {[%clk 0:00:07]}  Kc3 {[%clk 0:00:07]} 75. Rh3+ {[%clk 0:00:08]}  Kd4 {[%clk 0:00:07]} 76. Kb4 {[%clk 0:00:08]}  c5+ {[%clk 0:00:07]} 77. Kb5 {[%clk 0:00:09]} 1-0


[Site "https://www.chess.com"]

[Event "Titled Tuesday Blitz September 27 Late 2022"]
[White "Moral Garcia, Serafin"]
[Black "Prydun, Andriy"]
[WhiteFideId "2201925"]
[BlackFideId "14145898"]
[WhiteElo "2259"]
[BlackElo "2163"]
[Result "1/2-1/2"]
[Round "05"]
[TimeControl "180+1"]
[Date "2022.09.28"]
[WhiteClock "0:00:19"]
[BlackClock "0:00:08"]

1. c4 {[%clk 0:03:00]}  Nf6 {[%clk 0:02:56]} 2. Nc3 {[%clk 0:02:59]}  e6 {[%clk 0:02:52]} 3. b3 {[%clk 0:02:58]}  d5 {[%clk 0:02:51]} 4. e3 {[%clk 0:02:58]}  Be7 {[%clk 0:02:49]} 5. Bb2 {[%clk 0:02:57]}  Nbd7 {[%clk 0:02:41]} 6. Nf3 {[%clk 0:02:57]}  c6 {[%clk 0:02:40]} 7. Be2 {[%clk 0:02:57]}  a6 {[%clk 0:02:26]} 8. O-O {[%clk 0:02:48]}  O-O {[%clk 0:02:24]} 9. d4 {[%clk 0:02:44]}  b5 {[%clk 0:02:23]} 10. Qc2 {[%clk 0:02:43]}  Bb7 {[%clk 0:02:21]} 11. e4 {[%clk 0:02:39]}  b4 {[%clk 0:02:17]} 12. Na4 {[%clk 0:02:32]}  Nxe4 {[%clk 0:02:15]} 13. Bd3 {[%clk 0:02:31]}  f5 {[%clk 0:02:05]} 14. Rfe1 {[%clk 0:02:30]}  Bf6 {[%clk 0:01:58]} 15. Nd2 {[%clk 0:02:23]}  Re8 {[%clk 0:01:51]} 16. Nf1 {[%clk 0:02:22]}  a5 {[%clk 0:01:44]} 17. Rac1 {[%clk 0:02:12]}  Ba6 {[%clk 0:01:42]} 18. f3 {[%clk 0:02:09]}  Nd6 {[%clk 0:01:41]} 19. Qd2 {[%clk 0:02:00]}  Rc8 {[%clk 0:01:32]} 20. cxd5 {[%clk 0:01:38]}  Bxd3 {[%clk 0:01:25]} 21. dxe6 {[%clk 0:01:38]}  Bxf1 {[%clk 0:01:20]} 22. exd7 {[%clk 0:01:37]}  Qxd7 {[%clk 0:01:19]} 23. Kxf1 {[%clk 0:01:33]}  Qb7 {[%clk 0:01:11]} 24. Qd3 {[%clk 0:01:25]}  Red8 {[%clk 0:01:00]} 25. Rc5 {[%clk 0:01:19]}  Nb5 {[%clk 0:00:57]} 26. Rxf5 {[%clk 0:01:16]}  Nxd4 {[%clk 0:00:55]} 27. Rxa5 {[%clk 0:01:08]}  Nb5 {[%clk 0:00:45]} 28. Qc4+ {[%clk 0:01:07]}  Qf7 {[%clk 0:00:42]} 29. Qxf7+ {[%clk 0:01:04]}  Kxf7 {[%clk 0:00:43]} 30. Bxf6 {[%clk 0:01:02]}  Kxf6 {[%clk 0:00:41]} 31. Ra6 {[%clk 0:00:58]}  Rd2 {[%clk 0:00:40]} 32. Re2 {[%clk 0:00:54]}  Rd1+ {[%clk 0:00:35]} 33. Kf2 {[%clk 0:00:55]}  Nd4 {[%clk 0:00:33]} 34. Rb2 {[%clk 0:00:54]}  Re8 {[%clk 0:00:31]} 35. Nc5 {[%clk 0:00:52]}  h5 {[%clk 0:00:29]} 36. Ne4+ {[%clk 0:00:52]}  Kf5 {[%clk 0:00:27]} 37. Ra5+ {[%clk 0:00:47]}  Re5 {[%clk 0:00:23]} 38. Rxe5+ {[%clk 0:00:45]}  Kxe5 {[%clk 0:00:24]} 39. Rd2 {[%clk 0:00:40]}  Ra1 {[%clk 0:00:19]} 40. Ng3 {[%clk 0:00:39]}  g6 {[%clk 0:00:17]} 41. Ne2 {[%clk 0:00:28]}  Nb5 {[%clk 0:00:16]} 42. Ke3 {[%clk 0:00:26]}  g5 {[%clk 0:00:13]} 43. Kd3 {[%clk 0:00:25]}  Rh1 {[%clk 0:00:11]} 44. h3 {[%clk 0:00:24]}  g4 {[%clk 0:00:11]} 45. hxg4 {[%clk 0:00:24]}  hxg4 {[%clk 0:00:12]} 46. fxg4 {[%clk 0:00:24]}  Rh4 {[%clk 0:00:11]} 47. Kc4 {[%clk 0:00:20]}  Rxg4+ {[%clk 0:00:11]} 48. Kc5 {[%clk 0:00:20]}  Rxg2 {[%clk 0:00:09]} 49. Kxb4 {[%clk 0:00:19]}  Nc7 {[%clk 0:00:05]} 50. Kc5 {[%clk 0:00:19]}  Nd5 {[%clk 0:00:04]} 51. Kxc6 {[%clk 0:00:19]}  Nc3 {[%clk 0:00:04]} 52. a4 {[%clk 0:00:16]}  Rxe2 {[%clk 0:00:03]} 53. Rxe2+ {[%clk 0:00:16]}  Nxe2 {[%clk 0:00:04]} 54. a5 {[%clk 0:00:17]}  Nd4+ {[%clk 0:00:05]} 55. Kb6 {[%clk 0:00:15]}  Kd6 {[%clk 0:00:06]} 56. a6 {[%clk 0:00:15]}  Nc6 {[%clk 0:00:05]} 57. b4 {[%clk 0:00:16]}  Nxb4 {[%clk 0:00:05]} 58. a7 {[%clk 0:00:16]}  Nd5+ {[%clk 0:00:06]} 59. Kb7 {[%clk 0:00:16]}  Nc7 {[%clk 0:00:07]} 60. Kb6 {[%clk 0:00:16]}  Kd7 {[%clk 0:00:07]} 61. Kb7 {[%clk 0:00:17]}  Kd8 {[%clk 0:00:08]} 62. Kb6 {[%clk 0:00:17]}  Kd7 {[%clk 0:00:08]} 63. Kb7 {[%clk 0:00:18]}  Kd8 {[%clk 0:00:08]} 64. Kb8 {[%clk 0:00:19]}  Kd7 {[%clk 0:00:08]} 65. Kb7 {[%clk 0:00:19]} 1/2-1/2


[Site "https://www.chess.com"]

[Event "Titled Tuesday Blitz September 27 Late 2022"]
[White "Nogerbek, Kazybek"]
[Black "Bortnyk, Mykola"]
[WhiteFideId "13710427"]
[BlackFideId "14120836"]
[WhiteElo "2458"]
[BlackElo "2582"]
[Result "0-1"]
[Round "05"]
[TimeControl "180+1"]
[Date "2022.09.27"]
[WhiteClock "0:00:03"]
[BlackClock "0:00:24"]

1. Nf3 {[%clk 0:03:00]}  c5 {[%clk 0:02:59]} 2. c4 {[%clk 0:02:58]}  Nc6 {[%clk 0:02:56]} 3. Nc3 {[%clk 0:02:58]}  Nf6 {[%clk 0:02:56]} 4. g3 {[%clk 0:02:55]}  g6 {[%clk 0:02:54]} 5. Bg2 {[%clk 0:02:55]}  Bg7 {[%clk 0:02:55]} 6. O-O {[%clk 0:02:56]}  O-O {[%clk 0:02:55]} 7. d4 {[%clk 0:02:56]}  cxd4 {[%clk 0:02:54]} 8. Nxd4 {[%clk 0:02:57]}  a6 {[%clk 0:02:44]} 9. b3 {[%clk 0:02:49]}  Nxd4 {[%clk 0:02:41]} 10. Qxd4 {[%clk 0:02:50]}  d5 {[%clk 0:02:38]} 11. cxd5 {[%clk 0:02:13]}  Nxd5 {[%clk 0:02:38]} 12. Qxd5 {[%clk 0:02:14]}  Bxc3 {[%clk 0:02:37]} 13. Bh6 {[%clk 0:02:14]}  Qxd5 {[%clk 0:02:13]} 14. Bxd5 {[%clk 0:02:13]}  Rd8 {[%clk 0:02:14]} 15. Rad1 {[%clk 0:01:47]}  Bh3 {[%clk 0:02:13]} 16. Bg2 {[%clk 0:01:41]}  Bxg2 {[%clk 0:02:10]} 17. Kxg2 {[%clk 0:01:42]}  f6 {[%clk 0:02:10]} 18. Be3 {[%clk 0:01:42]}  b5 {[%clk 0:02:06]} 19. Bb6 {[%clk 0:01:41]}  Rxd1 {[%clk 0:02:01]} 20. Rxd1 {[%clk 0:01:42]}  Rb8 {[%clk 0:02:00]} 21. Bc5 {[%clk 0:01:43]}  Rb7 {[%clk 0:02:00]} 22. Rd8+ {[%clk 0:01:39]}  Kf7 {[%clk 0:02:00]} 23. Ra8 {[%clk 0:01:40]}  a5 {[%clk 0:02:00]} 24. g4 {[%clk 0:01:32]}  Rd7 {[%clk 0:01:51]} 25. Bb6 {[%clk 0:01:29]}  Rd2 {[%clk 0:01:49]} 26. a3 {[%clk 0:01:04]}  Ra2 {[%clk 0:01:42]} 27. Rc8 {[%clk 0:00:59]}  Be1 {[%clk 0:01:36]} 28. Rc5 {[%clk 0:00:16]}  b4 {[%clk 0:01:32]} 29. a4 {[%clk 0:00:13]}  Rxe2 {[%clk 0:01:27]} 30. Rxa5 {[%clk 0:00:14]}  Rb2 {[%clk 0:01:27]} 31. Rb5 {[%clk 0:00:14]}  Rxb3 {[%clk 0:01:27]} 32. a5 {[%clk 0:00:15]}  Ra3 {[%clk 0:01:26]} 33. Bc5 {[%clk 0:00:15]}  Ra4 {[%clk 0:01:17]} 34. Rb7 {[%clk 0:00:13]}  Ke6 {[%clk 0:01:13]} 35. Rxe7+ {[%clk 0:00:05]}  Kd5 {[%clk 0:01:13]} 36. Bb6 {[%clk 0:00:04]}  Bc3 {[%clk 0:01:12]} 37. Rd7+ {[%clk 0:00:02]}  Kc4 {[%clk 0:01:13]} 38. Rc7+ {[%clk 0:00:03]}  Kd3 {[%clk 0:01:13]} 39. Rd7+ {[%clk 0:00:03]}  Kc2 {[%clk 0:01:14]} 40. Rc7 {[%clk 0:00:04]}  b3 {[%clk 0:01:12]} 41. a6 {[%clk 0:00:02]}  b2 {[%clk 0:01:11]} 42. a7 {[%clk 0:00:03]}  b1=Q {[%clk 0:01:10]} 43. Bd4 {[%clk 0:00:03]}  Kd3 {[%clk 0:00:57]} 44. Bxc3 {[%clk 0:00:02]}  Rxg4+ {[%clk 0:00:55]} 45. Kh3 {[%clk 0:00:02]}  Qf1+ {[%clk 0:00:48]} 46. Kxg4 {[%clk 0:00:02]}  Qg2+ {[%clk 0:00:49]} 47. Kf4 {[%clk 0:00:01]}  Qxf2+ {[%clk 0:00:42]} 48. Kg4 {[%clk 0:00:01]}  Qg2+ {[%clk 0:00:41]} 49. Kf4 {[%clk 0:00:02]}  Qxh2+ {[%clk 0:00:28]} 50. Kf3 {[%clk 0:00:02]}  Qxc7 {[%clk 0:00:26]} 51. a8=Q {[%clk 0:00:02]}  Qxc3 {[%clk 0:00:26]} 52. Qh8 {[%clk 0:00:02]}  Kd2+ {[%clk 0:00:25]} 53. Kf2 {[%clk 0:00:03]}  Qd4+ {[%clk 0:00:25]} 54. Kf1 {[%clk 0:00:04]}  h5 {[%clk 0:00:23]} 55. Qe8 {[%clk 0:00:03]}  Qd3+ {[%clk 0:00:23]} 56. Kg2 {[%clk 0:00:03]}  Qe2+ {[%clk 0:00:23]} 57. Qxe2+ {[%clk 0:00:03]}  Kxe2 {[%clk 0:00:24]} 0-1


[Site "https://www.chess.com"]

[Event "Titled Tuesday Blitz September 27 Late 2022"]
[White "Papasimakopoulos, Alexandros"]
[Black "Lazavik, Denis"]
[WhiteFideId "4244125"]
[BlackFideId "13515110"]
[WhiteElo "2357"]
[BlackElo "2437"]
[Result "1/2-1/2"]
[Round "05"]
[TimeControl "180+1"]
[Date "2022.09.27"]
[WhiteClock "0:00:09"]
[BlackClock "0:00:06"]

1. d4 {[%clk 0:03:00]}  f5 {[%clk 0:03:00]} 2. e4 {[%clk 0:03:00]}  fxe4 {[%clk 0:02:59]} 3. Nc3 {[%clk 0:03:01]}  Nf6 {[%clk 0:02:59]} 4. Bg5 {[%clk 0:03:01]}  g6 {[%clk 0:02:58]} 5. f3 {[%clk 0:03:01]}  d5 {[%clk 0:02:57]} 6. fxe4 {[%clk 0:03:01]}  Nxe4 {[%clk 0:02:57]} 7. Nxe4 {[%clk 0:03:00]}  dxe4 {[%clk 0:02:58]} 8. Qd2 {[%clk 0:03:01]}  Bg7 {[%clk 0:02:56]} 9. O-O-O {[%clk 0:03:01]}  O-O {[%clk 0:02:49]} 10. Bc4+ {[%clk 0:03:01]}  Kh8 {[%clk 0:02:49]} 11. Bh6 {[%clk 0:02:58]}  Bg4 {[%clk 0:02:39]} 12. Ne2 {[%clk 0:02:47]}  Nd7 {[%clk 0:02:34]} 13. Bxg7+ {[%clk 0:02:47]}  Kxg7 {[%clk 0:02:34]} 14. h3 {[%clk 0:02:43]}  Bxe2 {[%clk 0:02:33]} 15. Qxe2 {[%clk 0:02:44]}  Nf6 {[%clk 0:02:33]} 16. g4 {[%clk 0:02:42]}  Qd6 {[%clk 0:02:31]} 17. h4 {[%clk 0:02:35]}  Qf4+ {[%clk 0:02:29]} 18. Kb1 {[%clk 0:02:35]}  Nxg4 {[%clk 0:02:22]} 19. Rdf1 {[%clk 0:02:27]}  Nf2 {[%clk 0:02:18]} 20. h5 {[%clk 0:02:13]}  g5 {[%clk 0:02:02]} 21. h6+ {[%clk 0:02:13]}  Kh8 {[%clk 0:02:02]} 22. Rhg1 {[%clk 0:02:13]}  e3 {[%clk 0:01:55]} 23. a3 {[%clk 0:01:46]}  Rf6 {[%clk 0:01:49]} 24. Qh5 {[%clk 0:01:40]}  g4 {[%clk 0:01:40]} 25. Be2 {[%clk 0:01:16]}  Rxh6 {[%clk 0:01:23]} 26. Qc5 {[%clk 0:01:16]}  g3 {[%clk 0:00:46]} 27. Qxe7 {[%clk 0:01:09]}  Rh2 {[%clk 0:00:38]} 28. Re1 {[%clk 0:01:07]}  Rf8 {[%clk 0:00:26]} 29. Rxg3 {[%clk 0:00:53]}  Qf6 {[%clk 0:00:19]} 30. Qxe3 {[%clk 0:00:50]}  Rh4 {[%clk 0:00:14]} 31. Rf3 {[%clk 0:00:30]}  Rf4 {[%clk 0:00:13]} 32. Qxf2 {[%clk 0:00:21]}  Rxf3 {[%clk 0:00:14]} 33. Bxf3 {[%clk 0:00:21]}  Qxf3 {[%clk 0:00:15]} 34. Qh2 {[%clk 0:00:19]}  Qf4 {[%clk 0:00:12]} 35. Qg1 {[%clk 0:00:15]}  Rg8 {[%clk 0:00:11]} 36. Qh1 {[%clk 0:00:16]}  c6 {[%clk 0:00:09]} 37. c3 {[%clk 0:00:16]}  Qf5+ {[%clk 0:00:09]} 38. Ka1 {[%clk 0:00:17]}  Rf8 {[%clk 0:00:10]} 39. Qg2 {[%clk 0:00:16]}  Qf2 {[%clk 0:00:09]} 40. Qe4 {[%clk 0:00:16]}  Qf5 {[%clk 0:00:09]} 41. Qe7 {[%clk 0:00:16]}  Qf7 {[%clk 0:00:09]} 42. Qe5+ {[%clk 0:00:17]}  Qg7 {[%clk 0:00:09]} 43. Qe2 {[%clk 0:00:16]}  Rg8 {[%clk 0:00:09]} 44. Rf1 {[%clk 0:00:16]}  Qg2 {[%clk 0:00:08]} 45. Qe5+ {[%clk 0:00:16]}  Qg7 {[%clk 0:00:09]} 46. Rf6 {[%clk 0:00:13]}  Rd8 {[%clk 0:00:05]} 47. a4 {[%clk 0:00:11]}  a6 {[%clk 0:00:04]} 48. a5 {[%clk 0:00:10]}  Rc8 {[%clk 0:00:03]} 49. b4 {[%clk 0:00:09]}  Rd8 {[%clk 0:00:03]} 50. Kb2 {[%clk 0:00:09]}  Kg8 {[%clk 0:00:03]} 51. Qe6+ {[%clk 0:00:09]}  Kh8 {[%clk 0:00:03]} 52. Rf7 {[%clk 0:00:08]}  Qg6 {[%clk 0:00:03]} 53. Rf6 {[%clk 0:00:05]}  Qg7 {[%clk 0:00:04]} 54. Qe5 {[%clk 0:00:05]}  Kg8 {[%clk 0:00:03]} 55. Ka3 {[%clk 0:00:06]}  Rf8 {[%clk 0:00:02]} 56. Qe6+ {[%clk 0:00:04]}  Kh8 {[%clk 0:00:03]} 57. Rh6 {[%clk 0:00:03]}  Rd8 {[%clk 0:00:02]} 58. Rh3 {[%clk 0:00:02]}  Rf8 {[%clk 0:00:02]} 59. Qe4 {[%clk 0:00:02]}  Rg8 {[%clk 0:00:02]} 60. Qh4 {[%clk 0:00:02]}  Rf8 {[%clk 0:00:02]} 61. Qh5 {[%clk 0:00:03]}  Qf7 {[%clk 0:00:03]} 62. Qg4 {[%clk 0:00:03]}  Qg7 {[%clk 0:00:03]} 63. Qh4 {[%clk 0:00:03]}  Qf7 {[%clk 0:00:04]} 64. Qe4 {[%clk 0:00:04]}  Qg7 {[%clk 0:00:04]} 65. Kb3 {[%clk 0:00:03]}  Qf7+ {[%clk 0:00:04]} 66. Kb2 {[%clk 0:00:03]}  Qg7 {[%clk 0:00:05]} 67. Qe6 {[%clk 0:00:03]}  Rf2+ {[%clk 0:00:04]} 68. Ka3 {[%clk 0:00:03]}  Rf8 {[%clk 0:00:04]} 69. Re3 {[%clk 0:00:03]}  Qf7 {[%clk 0:00:04]} 70. Qxf7 {[%clk 0:00:03]}  Rxf7 {[%clk 0:00:04]} 71. Kb3 {[%clk 0:00:04]}  h5 {[%clk 0:00:04]} 72. Kc4 {[%clk 0:00:05]}  Kg7 {[%clk 0:00:04]} 73. d5 {[%clk 0:00:03]}  cxd5+ {[%clk 0:00:03]} 74. Kxd5 {[%clk 0:00:04]}  Kg6 {[%clk 0:00:04]} 75. c4 {[%clk 0:00:05]}  h4 {[%clk 0:00:04]} 76. b5 {[%clk 0:00:05]}  Kg5 {[%clk 0:00:04]} 77. Kc5 {[%clk 0:00:05]}  axb5 {[%clk 0:00:04]} 78. cxb5 {[%clk 0:00:05]}  Kg4 {[%clk 0:00:04]} 79. Re4+ {[%clk 0:00:05]}  Kg3 {[%clk 0:00:04]} 80. Re8 {[%clk 0:00:05]}  h3 {[%clk 0:00:05]} 81. Rg8+ {[%clk 0:00:06]}  Kh4 {[%clk 0:00:05]} 82. Rh8+ {[%clk 0:00:06]}  Kg3 {[%clk 0:00:05]} 83. Kb6 {[%clk 0:00:07]}  h2 {[%clk 0:00:04]} 84. Ka7 {[%clk 0:00:06]}  Rg7 {[%clk 0:00:04]} 85. b6 {[%clk 0:00:06]}  Kg2 {[%clk 0:00:04]} 86. a6 {[%clk 0:00:05]}  bxa6+ {[%clk 0:00:04]} 87. Kxa6 {[%clk 0:00:06]}  h1=Q {[%clk 0:00:04]} 88. Rxh1 {[%clk 0:00:07]}  Kxh1 {[%clk 0:00:05]} 89. b7 {[%clk 0:00:07]}  Rg8 {[%clk 0:00:05]} 90. Ka7 {[%clk 0:00:07]}  Kg2 {[%clk 0:00:06]} 91. b8=Q {[%clk 0:00:08]}  Rxb8 {[%clk 0:00:06]} 92. Kxb8 {[%clk 0:00:09]} 1/2-1/2


[Site "https://www.chess.com"]

[Event "Titled Tuesday Blitz September 27 Late 2022"]
[White "Petrosyan, Manuel"]
[Black "Matinian, Nikita"]
[WhiteFideId "13300857"]
[BlackFideId "24129100"]
[WhiteElo "2592"]
[BlackElo "2422"]
[Result "1-0"]
[Round "05"]
[TimeControl "180+1"]
[Date "2022.09.27"]
[WhiteClock "0:00:22"]
[BlackClock "0:00:06"]

1. d4 {[%clk 0:02:53]}  Nf6 {[%clk 0:02:53]} 2. Nf3 {[%clk 0:02:52]}  g6 {[%clk 0:02:49]} 3. Nc3 {[%clk 0:02:46]}  d5 {[%clk 0:02:48]} 4. Bf4 {[%clk 0:02:46]}  c6 {[%clk 0:02:48]} 5. e3 {[%clk 0:02:45]}  Bg4 {[%clk 0:02:44]} 6. Be2 {[%clk 0:02:44]}  Nbd7 {[%clk 0:02:44]} 7. Ne5 {[%clk 0:02:43]}  Bxe2 {[%clk 0:02:43]} 8. Qxe2 {[%clk 0:02:42]}  Nh5 {[%clk 0:02:39]} 9. Nxd7 {[%clk 0:02:12]}  Nxf4 {[%clk 0:02:39]} 10. exf4 {[%clk 0:02:04]}  Qxd7 {[%clk 0:02:38]} 11. O-O {[%clk 0:02:03]}  Bg7 {[%clk 0:02:37]} 12. Rad1 {[%clk 0:02:03]}  O-O {[%clk 0:02:36]} 13. Nb1 {[%clk 0:01:56]}  a5 {[%clk 0:02:33]} 14. c3 {[%clk 0:01:56]}  a4 {[%clk 0:02:33]} 15. a3 {[%clk 0:01:55]}  Ra5 {[%clk 0:02:28]} 16. Nd2 {[%clk 0:01:54]}  Rb5 {[%clk 0:02:24]} 17. Nf3 {[%clk 0:01:54]}  Re8 {[%clk 0:02:18]} 18. Rd2 {[%clk 0:01:51]}  Qg4 {[%clk 0:02:02]} 19. g3 {[%clk 0:01:50]}  e6 {[%clk 0:02:02]} 20. Kg2 {[%clk 0:01:45]}  h5 {[%clk 0:01:59]} 21. Re1 {[%clk 0:01:40]}  Ra8 {[%clk 0:01:57]} 22. Qe3 {[%clk 0:01:24]}  Rc8 {[%clk 0:01:49]} 23. Nh4 {[%clk 0:01:20]}  e5 {[%clk 0:01:42]} 24. fxe5 {[%clk 0:01:19]}  Qe6 {[%clk 0:01:38]} 25. Nf3 {[%clk 0:01:13]}  Qe7 {[%clk 0:01:30]} 26. h4 {[%clk 0:01:09]}  Rb3 {[%clk 0:01:29]} 27. Qf4 {[%clk 0:01:04]}  Rb5 {[%clk 0:01:21]} 28. Rde2 {[%clk 0:01:04]}  c5 {[%clk 0:01:21]} 29. dxc5 {[%clk 0:01:04]}  Rbxc5 {[%clk 0:01:22]} 30. Qxa4 {[%clk 0:01:03]}  Rc4 {[%clk 0:01:20]} 31. Qd1 {[%clk 0:01:01]}  Qe6 {[%clk 0:01:18]} 32. Nd4 {[%clk 0:00:56]}  Qe7 {[%clk 0:01:17]} 33. Qd3 {[%clk 0:00:55]}  b6 {[%clk 0:01:12]} 34. Qf3 {[%clk 0:00:51]}  Rd8 {[%clk 0:01:03]} 35. Rd1 {[%clk 0:00:38]}  Bxe5 {[%clk 0:00:53]} 36. Nc2 {[%clk 0:00:27]}  Qf6 {[%clk 0:00:20]} 37. Ne3 {[%clk 0:00:26]}  Qxf3+ {[%clk 0:00:18]} 38. Kxf3 {[%clk 0:00:27]}  Rc5 {[%clk 0:00:19]} 39. Red2 {[%clk 0:00:26]}  Kg7 {[%clk 0:00:14]} 40. Rxd5 {[%clk 0:00:25]}  Rb8 {[%clk 0:00:14]} 41. Rxc5 {[%clk 0:00:24]}  bxc5 {[%clk 0:00:15]} 42. Nc4 {[%clk 0:00:24]}  Bf6 {[%clk 0:00:14]} 43. a4 {[%clk 0:00:23]}  g5 {[%clk 0:00:12]} 44. hxg5 {[%clk 0:00:23]}  Bxg5 {[%clk 0:00:13]} 45. Rd5 {[%clk 0:00:23]}  Kg6 {[%clk 0:00:11]} 46. Rxc5 {[%clk 0:00:23]}  f6 {[%clk 0:00:12]} 47. a5 {[%clk 0:00:22]}  h4 {[%clk 0:00:05]} 48. gxh4 {[%clk 0:00:22]}  Bxh4 {[%clk 0:00:06]} 49. a6 {[%clk 0:00:22]} 1-0


[Site "https://www.chess.com"]